{"text_format":"3","workbook":"xlsx","n_sheets":4,"sheets":["Worksheet","Hebrew","Definitions","Reference"],"not_rendered":{"macros":1,"defined_names":9},"read":"whole","date_system":"1900"}

{"sheet":"Worksheet","index":0,"n_rows":21,"n_cols":5,"rows_kept":21}
[null,"List 20","Definition",null,"Select Vocabulary List in Cell B1"]
[{"$f":"IFERROR(IF(INDEX(DefNum,MATCH(C2,Definitions,0))=ROW(B2)-1,1,2),)","v":0},{"$f":"INDEX(VocabArray,ROW(A1),MATCH($B$1,VocabLists,0))","v":"אַבְשָׁלוֹם"}]
[0,{"$f":"INDEX(VocabArray,ROW(A2),MATCH($B$1,VocabLists,0))","v":"בָּכָה"}]
[0,{"$f":"INDEX(VocabArray,ROW(A3),MATCH($B$1,VocabLists,0))","v":"בִּלְתִּי"}]
[0,{"$f":"INDEX(VocabArray,ROW(A4),MATCH($B$1,VocabLists,0))","v":"חָשַׁב"}]
[0,{"$f":"INDEX(VocabArray,ROW(A5),MATCH($B$1,VocabLists,0))","v":"יָדָה"}]
[0,{"$f":"INDEX(VocabArray,ROW(A6),MATCH($B$1,VocabLists,0))","v":"יִצְחָק"}]
[0,{"$f":"INDEX(VocabArray,ROW(A7),MATCH($B$1,VocabLists,0))","v":"כְּבַד"}]
[0,{"$f":"INDEX(VocabArray,ROW(A8),MATCH($B$1,VocabLists,0))","v":"כָּנָף"}]
[0,{"$f":"INDEX(VocabArray,ROW(A9),MATCH($B$1,VocabLists,0))","v":"נָּבָא"}]
[0,{"$f":"INDEX(VocabArray,ROW(A10),MATCH($B$1,VocabLists,0))","v":"נֶ֫גֶב"}]
[0,{"$f":"INDEX(VocabArray,ROW(A11),MATCH($B$1,VocabLists,0))","v":"נָחַם"}]
[0,{"$f":"INDEX(VocabArray,ROW(A12),MATCH($B$1,VocabLists,0))","v":"עַל"}]
[0,{"$f":"INDEX(VocabArray,ROW(A13),MATCH($B$1,VocabLists,0))","v":"עָמוּד"}]
[0,{"$f":"INDEX(VocabArray,ROW(A14),MATCH($B$1,VocabLists,0))","v":"עָפָר"}]
[0,{"$f":"INDEX(VocabArray,ROW(A15),MATCH($B$1,VocabLists,0))","v":"קָטַר"}]
[0,{"$f":"INDEX(VocabArray,ROW(A16),MATCH($B$1,VocabLists,0))","v":"רַק"}]
[0,{"$f":"INDEX(VocabArray,ROW(A17),MATCH($B$1,VocabLists,0))","v":"שָֺרַף"}]
[0,{"$f":"INDEX(VocabArray,ROW(A18),MATCH($B$1,VocabLists,0))","v":"שָׁבַּת"}]
[0,{"$f":"INDEX(VocabArray,ROW(A19),MATCH($B$1,VocabLists,0))","v":"שִׁמֶרוּן"}]
[0,{"$f":"INDEX(VocabArray,ROW(A20),MATCH($B$1,VocabLists,0))","v":"שֶּׁקֶר"}]

{"sheet":"Hebrew","index":1,"n_rows":21,"n_cols":22,"rows_kept":21}
[null,"List 1","List 2","List 3","List 4","List 5","List 6","List 7","List 8","List 9","List 10","List 11","List 12","List 13","List 14","List 15","List 16","List 17","List 18","List 19","List 20","List 21"]
[1,"אָמַר","אָב","אֶחָד","אָדוֹן","אָדָם","אֶ֫לֶף","אֵשׁ","אֹהֶל","אֹיֵב","אֶ֫בֶן","אֲדָמָה","אָסַף","אָבַד","אַבְרָהָם","אַיִל","אָז","אַף","אוֹר","אָחוֹת","אַבְשָׁלוֹם","בָּמָה"]
[2,"אֶל","אִישׁ","אִם","אַחֲרֵי","אָח","אַרְבַּע","בֵּין","אַחֲרֹן","אַתֶּם","אַמָּה","אָהַב","אֲרוֹן","אֹזֶן","אַחֵר","אַךְ","הָלַל","אֲרָם","אֶמֶת","אֲנַחְנוּ","בָּכָה","בַּעַד"]
[3,"אֱלֺהִים","אֶ֫רֶץ","אֲנִי","אַיִן","בַּת","הִיא","בָּנָה","אוֹ","בְּרִית","אַף","אֵל","בֶּ֫גֶד","אֶפְרַ֫יִם","בָּחַר","אַשּׁוּר","חָכְמָה","גִּלְעָד","בּוּשֺ","בְּכֹר","בִּלְתִּי","גָּאַל"]
[4,"אֲשֶׁר","בַּ֫יִת","אֵת","אָכַל","גָדוֹל","חָמֵשֹ","זָהָב","אָנֹכִ֫י","חֹ֫דֶשׁ","בָּבֶל","אֵם","בֹּ֫קֶר","בְּהֵמָה","בִּין","לְבַד","חָנָה","זֶבַח","גָּדַל","בָּטַח","חָשַׁב","חֻקָּה"]
[5,"אֵת","דָּבַר","דָּוִד","אַל","גוֹי","טוֹב","חֶ֫רֶב","בָּרַךְ","חָזַק","בָּשָֺר","בָּקַשׁ","יוֹסֵף","בָּקָר","בִּנְיָמִן","בַּ֫עַל","יַ֫יִן","חוֹמָה","חֵמָה","חַיִּים","יָדָה","יָרָבְעָם"]
[6,"בְּ","דָּבָר","הִנֵּה","אֵלֶּה","הֵם","יָלַד","יָם","דָּם","חַטָּאת","גְּבוּל","זָכַר","יָסַף","גָלָה","דּוֹר","גִבּוֹר","יוֹאָב","חָכָם","חֲצִי","יָטַב","יִצְחָק","יָתַר"]
[7,"בּוֹא","הוּא","יָדַע","אִשָּׁה","הַר","מָצָא","יָרַד","יַעֲקֹב","חָיָה","חַי","זֶרַע","כָּבוֹד","זָקֶן","דָּרַשׁ","טָמֵא","יָמִין","חָלַל","חֹק","יָשָׁר","כְּבַד","כֶּ֫בֶשֺ"]
[8,"בֵּן","הָלַךְ","יְהוּדָה","אַתָּה","יְרוּשָׁלַיִם","מִשְׁפָּט","כֶּ֫סֶף","יָרֵא","כָּרַת","חַ֫יִל","חָטָא","כָּלָה","חָצֵר","הָרַג","כָּסָה","כְּמוֹ","יֵשׁ","יִרְמְיָהוּ","לָכַד","כָּנָף","כָּפַר"]
[9,"הַ","זֶה","יָצָא","גַּם","כֹּה","נָכָה","מִזְבֵּחַ","כְּלִי","מְאֹד","חֶ֫סֶד","יְהוֹשׁוּעַ","מַחֲנֶה","יָכֹל","זֶבַח","מָ֫וֶת","מַ֫עַל","כִּסֵּא","כֹּחַ","לַשׁוֹן","נָּבָא","מְעַט"]
[10,"הָיָה","יָד","יָשַׁב","דֶּ֫רֶךְ","לֵב","נָפַל","מִי","לֵוִי","מִשְׁפָּחָה","לֵבָב","יָרַשׁ","מַלְאָךְ","יַרְדֵּן","חָוָה","מִנַשֶּׁה","מִשְׁכָּן","מִספָּר","נָּגַשׁ","מִגְרָשׁ","נֶ֫גֶב","מַרְאֶה"]
[11,"וְ","יוֹם","לָקַח","הֲ","מֵאָה","עוֹד","מָקוֹם","לֶ֫חֶם","סוּר","לְמַ֫עַן","כּוּן","מִנְחָה","יָשָע","חוּץ","נֶגֶד","נָסַע","נוּחַ","נָּשִֺיא","מַמְלָלָה","נָחַם","סָפַר"]
[12,"כְּ","נָתַן","מוּת","כֹּהֵן","מַ֫יִם","עוֹלָם","נָא","מִלְחָמָה","עָבַד","מִדְבָּר","כָּתַב","נָטָה","כַּף","לָחַם","נָגַע","עֲבֹדָה","נַֹחַל","עֶ֫צֶם","נָהָר","עַל","עַמּוֹן"]
[13,"כִּי","עַד","עַ֫יִן","כֵּן","נָשָֺא","עַתָּה","נְאֻם","מָלַךְ","עֹלָה","מַטֶּה","לַיְלָה","נָצַל","מוֹאָב","מְלָאכָה","נוּס","עֵדָה","נְחֹשֶׁת","פֶּן","עֲשָֺרָה","עָמוּד","רוּץ"]
[14,"כֹּל","עִיר","עָלָה","מָה","עָבַד","פֶּה","רַב","נָבִיא","עֶ֫שְֺרִים","מָלֵא","מוֹעֵד","עָזַב","מִצְוָה","סָבַב","צְדָקָה","רָדָף","סוּס","צֶ֫דֶק","פַּ֫עַם","עָפָר","רֹ֫חַב"]
[15,"לְ","עַם","עִם","מִצְרַ֫יִם","עָמַד","צָבָא","רוּחַ","נָגַד","עֵת","נַ֫עַר","מַעֲשֶֺה","עָשָֺר","סֵ֫פֶר","פֶּ֫תַח","צִיּוֹן","שָֹנֵא","עֶ֫רֶב","קָבַץ","פְּרִי","קָטַר","רָעָב"]
[16,"לֹא","פָּנִים","שׁוּב","מֹשֶה","קוּם","צָוָה","שַֺר","סָבִיב","פְּלִשְׁתִּי","פַּרְעֹה","נַחֲלָה","צַדִּיק","רִאשׁוֹן","קָדַשׁ","צָפוֹן","שֶׁ","עֶשְֺרֵה","קָבַר","קָדוֹשׁ","רַק","שָׁכַח"]
[17,"מֶ֫לֶךְ","רָאָה","שָׁלַח","נֶפֶשֹ","רֹאשׁ","קֹ֫דֶשׁ","שָׁאוּל","עָנָה","פּקַד","צֹאן","עָוֹן","רוּם","רֵעַ","רָבָה","רֹב","שָׁבַר","פָּנָה","קָהָל","רֶ֫כֶב","שָֺרַף","שְׁלִישִי"]
[18,"מִן","שָׁמַע","שָׁם","עֶ֫בֶד","שִֺים","קוֹל","שָׁמַ֫יִם","עֵץ","קָרַב","רֶ֫גֶל","קֶ֫רֶב","שָכַב","שֵׁבֶט","רָעָה","שָֺמַח","שָׁחַת","פָּר","שָׁאַר","שָׁלַם","שָׁבַּת","תָּמִיד"]
[19,"עַל","עַל","שֵׁם","קָרָא","שָלֹש","שֶֹבַע","שַׁעַר","רַע","רָעָה","רָשָׁע","שָׁלוֹם","שָׁפַט","שָׁבַע","שָֺפָה","שֶׁ֫מֶשׁ","שְׁמוּאֵל","פָּתַח","שָׁכַן","שָׁפַךְ","שִׁמֶרוּן"," שִׁמֶרוּן"]
[20,"עָשָֺה","עָשָֺה","שָׁנָה","שְׁנַיִם","תַּ֫חַת","שָׁמַר","תָּ֫וֶךְ","שָׂדֶה","שְׁלֹמֹה","שֵׁשׁ","תוֹרָה","שָתָה","שֶׁמֶן","שָׁאַל","שֵ֫נִי","שְׁמֹנֶה","קָרָא","שָׁלַךְ","תוֹעֵבָה","שֶּׁקֶר","שֶּׁקֶר"]

{"sheet":"Definitions","index":2,"n_rows":21,"n_cols":22,"rows_kept":21}
[null,"List 1","List 2","List 3","List 4","List 5","List 6","List 7","List 8","List 9","List 10","List 11","List 12","List 13","List 14","List 15","List 16","List 17","List 18","List 19","List 20","List 21"]
[1,"to say","father","one","lord, master","man, person","thousand","fire","tent","enemy","stone","ground, earth, land","he gathered","he perished","Abraham","ram","then","also, indeed","light","sister","Absolom","high place"]
[2,"to, toward","man","if","after","brother","four","between","Aaron","you","cubit","he loved","ark","ear","other, another","only","he praised","Aram","truth","we","he wept","behind, through"]
[3,"God, gods","land, earth","if","there is not, there is nothing","daughter","she, it","he built","or","covenant","nose, anger","God","garment","Ephraim","he chose","Assyria","wisdom","Gilead","he was ashamed","firstborn","except","he redeemed"]
[4,"that, which","house","with","he ate","great, large","five","gold","I","month","Babylon","mother","morning","beast","he understood","alone","he encamped","he sacrificed","he was great","he trusted","he meant","statute"]
[5,"direct object marker","he spoke, he said","David","no, not","nation","pleasant, good","sword","he blessed","he was strong","flesh","he sought","Joseph","cattle","Benjamin","Baal","wine","wall","wrath","life","he praised","Jeroboam"]
[6,"in, with, by","word, speech, matter, thing","behold","these","they","he bore, he begat","sea","blood","sin, sin offering","border","he remembered","he added","he uncovered","generation","mighty warrior","Joab","wise","half","he was pleasing","Isaac","he remained"]
[7,"to come","he, it, that","he knew","woman, wife","mountain","he found","he went down, he descended","Jacob","he lived, he was alive","alive, living","seed","glory, honor, heaviness","elder","he sought","he was unclean","right hand, south","he profaned","statute","straight, right","it was heavy","lamb"]
[8,"son","he walked","Judah","you","Jerusalem","judgement, justice","silver, money","he feared, he was afraid","he cut","strength, wealth, army","he sinned","he completed","village","he killed","he covered","like, as","there is","Jeremiah","he captured","wing, edge","he atoned"]
[9,"the","this","he went out","also","thus, here","he struck","altar","utensil, weapon","very","lovingkindness, faithfulness","Joshua","camp","he was able","sacrifice","death","above","throne","strength","tongue","he prophesied","llittle, few"]
[10,"to be","hand","he sat, he dwelt","way, road","heart, inner self","he fell","who?","Levi, Levite","family, clan","heart, inner self, will","he possessed","angel","Jordan","he bowed down","Manasseh","tabernacle","number","he apporached","open land, field","Negev","appearance"]
[11,"and, but","day","he took, he grasped","makes into a question","hundred","again, still, longer","place","bread, food","he turned aside","because of, in order that","he prepared","offering","he delivered","outside","in front of","he journeyed","he rested","leader, prince","kingdom","he was sorry","he counted"]
[12,"like, as","he gave","he died","priest","water","eternity, forever","please, now","war, battle","he worked, he served","wilderness","he wrote","he stretched out","hand","he fought","he touched","service","torrent, wadi","bone","river","on, upon, over, above","Ammon"]
[13,"for, because","until, as far as","eye, spring","so, thus","he lifted, he bore, he carried","now","utterance, declaration","he reigned, he was king","burnt offering","tribe, staff","night","he delivered","Moab","work","he fled","congregation","bronze","lest","ten","pillar","he ran"]
[14,"all, every","city","he went up, it went up","what?","he passed over","mouth","great, many","prophet","twnety","he was full","appointed time","he left","commandment","he surrounded","righteousness","he pursued","horse","righteousness","time","dust","width"]
[15,"to, for","people, nation","with ","Egypt","he stood","host, army","spirit, breath, wind","he told, he declared","time","boy, youth","work","ten","book","opening","Zion","he hated","evening","he gathered","fruit","he burned incense","hunger, famine"]
[16,"no, not","face","he returned","Moses","he rose, he stood","he commanded","prince, chief","all around","Philistine","Pharaoh","possession, inheritance","righteousness","first","he was holy","north","that, which, who","ten","he buried","holy","only","he forgot"]
[17,"king","he saw, he looked","he sent out","life, throat, soul","head","holiness","Saul","he answered, he replied","he visited, he inspected","flock, sheep","iniquity","he raised up","friend","he was numerous","multitude","he broke","he turned","assembly","chariot","he burned  ","third"]
[18,"from","he heard","there","servant, slave","he put, he set","voice","heavens","tree, wood","he drew near","foot","midst","he lied down","scepter","he grazed","he rejoiced","he destroyed","bull","he remained","he made whole","Sabbath","continually"]
[19,"on, upon","on, upon","name","he called","three","seven","gate","bad, evil","evil, calamity","wicked","peace, welfare, completeness","he judged","he swore","lip","sun","Samuel","he opened","he dwelt","he poured out","Samaria","Samaria"]
[20,"to, make","to, make","year","two","under, instead of","he kept","midst","field","Solomon","six","law, instruction","he drank","oil","he asked","second","eight","he called","he threw","abomination","lie, deception","lie, deception"]

{"sheet":"Reference","index":3,"n_rows":20,"n_cols":4,"rows_kept":20,"hidden":true}
[{"$f":"_xlfn.SORTBY(_xlfn.SEQUENCE(20),_xlfn.RANDARRAY(20))","v":7},{"$f":"INDEX(VocabEnglish,A1,MATCH(List,VocabLists,0))","v":"it was heavy"},{"$f":"IF(COUNTIF(VocabDropDown,B1)>=1,\"\",ROW())","v":1},{"$f":"IF(ROW(B1)-ROW(B$1)+1>COUNT($C$1:$C$20),\"\",INDEX(B:B,SMALL(C$1:C$20,1+ROW(B1)-ROW(B$1))))","v":"it was heavy"}]
[16,{"$f":"INDEX(VocabEnglish,A2,MATCH(List,VocabLists,0))","v":"only"},2,{"$f":"IF(ROW(B2)-ROW(B$1)+1>COUNT($C$1:$C$20),\"\",INDEX(B:B,SMALL(C$1:C$20,1+ROW(B2)-ROW(B$1))))","v":"only"}]
[9,{"$f":"INDEX(VocabEnglish,A3,MATCH(List,VocabLists,0))","v":"he prophesied"},3,{"$f":"IF(ROW(B3)-ROW(B$1)+1>COUNT($C$1:$C$20),\"\",INDEX(B:B,SMALL(C$1:C$20,1+ROW(B3)-ROW(B$1))))","v":"he prophesied"}]
[3,{"$f":"INDEX(VocabEnglish,A4,MATCH(List,VocabLists,0))","v":"except"},4,{"$f":"IF(ROW(B4)-ROW(B$1)+1>COUNT($C$1:$C$20),\"\",INDEX(B:B,SMALL(C$1:C$20,1+ROW(B4)-ROW(B$1))))","v":"except"}]
[2,{"$f":"INDEX(VocabEnglish,A5,MATCH(List,VocabLists,0))","v":"he wept"},5,{"$f":"IF(ROW(B5)-ROW(B$1)+1>COUNT($C$1:$C$20),\"\",INDEX(B:B,SMALL(C$1:C$20,1+ROW(B5)-ROW(B$1))))","v":"he wept"}]
[10,{"$f":"INDEX(VocabEnglish,A6,MATCH(List,VocabLists,0))","v":"Negev"},6,{"$f":"IF(ROW(B6)-ROW(B$1)+1>COUNT($C$1:$C$20),\"\",INDEX(B:B,SMALL(C$1:C$20,1+ROW(B6)-ROW(B$1))))","v":"Negev"}]
[17,{"$f":"INDEX(VocabEnglish,A7,MATCH(List,VocabLists,0))","v":"he burned  "},7,{"$f":"IF(ROW(B7)-ROW(B$1)+1>COUNT($C$1:$C$20),\"\",INDEX(B:B,SMALL(C$1:C$20,1+ROW(B7)-ROW(B$1))))","v":"he burned  "}]
[18,{"$f":"INDEX(VocabEnglish,A8,MATCH(List,VocabLists,0))","v":"Sabbath"},8,{"$f":"IF(ROW(B8)-ROW(B$1)+1>COUNT($C$1:$C$20),\"\",INDEX(B:B,SMALL(C$1:C$20,1+ROW(B8)-ROW(B$1))))","v":"Sabbath"}]
[13,{"$f":"INDEX(VocabEnglish,A9,MATCH(List,VocabLists,0))","v":"pillar"},9,{"$f":"IF(ROW(B9)-ROW(B$1)+1>COUNT($C$1:$C$20),\"\",INDEX(B:B,SMALL(C$1:C$20,1+ROW(B9)-ROW(B$1))))","v":"pillar"}]
[20,{"$f":"INDEX(VocabEnglish,A10,MATCH(List,VocabLists,0))","v":"lie, deception"},10,{"$f":"IF(ROW(B10)-ROW(B$1)+1>COUNT($C$1:$C$20),\"\",INDEX(B:B,SMALL(C$1:C$20,1+ROW(B10)-ROW(B$1))))","v":"lie, deception"}]
[12,{"$f":"INDEX(VocabEnglish,A11,MATCH(List,VocabLists,0))","v":"on, upon, over, above"},11,{"$f":"IF(ROW(B11)-ROW(B$1)+1>COUNT($C$1:$C$20),\"\",INDEX(B:B,SMALL(C$1:C$20,1+ROW(B11)-ROW(B$1))))","v":"on, upon, over, above"}]
[8,{"$f":"INDEX(VocabEnglish,A12,MATCH(List,VocabLists,0))","v":"wing, edge"},12,{"$f":"IF(ROW(B12)-ROW(B$1)+1>COUNT($C$1:$C$20),\"\",INDEX(B:B,SMALL(C$1:C$20,1+ROW(B12)-ROW(B$1))))","v":"wing, edge"}]
[6,{"$f":"INDEX(VocabEnglish,A13,MATCH(List,VocabLists,0))","v":"Isaac"},13,{"$f":"IF(ROW(B13)-ROW(B$1)+1>COUNT($C$1:$C$20),\"\",INDEX(B:B,SMALL(C$1:C$20,1+ROW(B13)-ROW(B$1))))","v":"Isaac"}]
[4,{"$f":"INDEX(VocabEnglish,A14,MATCH(List,VocabLists,0))","v":"he meant"},14,{"$f":"IF(ROW(B14)-ROW(B$1)+1>COUNT($C$1:$C$20),\"\",INDEX(B:B,SMALL(C$1:C$20,1+ROW(B14)-ROW(B$1))))","v":"he meant"}]
[14,{"$f":"INDEX(VocabEnglish,A15,MATCH(List,VocabLists,0))","v":"dust"},15,{"$f":"IF(ROW(B15)-ROW(B$1)+1>COUNT($C$1:$C$20),\"\",INDEX(B:B,SMALL(C$1:C$20,1+ROW(B15)-ROW(B$1))))","v":"dust"}]
[11,{"$f":"INDEX(VocabEnglish,A16,MATCH(List,VocabLists,0))","v":"he was sorry"},16,{"$f":"IF(ROW(B16)-ROW(B$1)+1>COUNT($C$1:$C$20),\"\",INDEX(B:B,SMALL(C$1:C$20,1+ROW(B16)-ROW(B$1))))","v":"he was sorry"}]
[19,{"$f":"INDEX(VocabEnglish,A17,MATCH(List,VocabLists,0))","v":"Samaria"},17,{"$f":"IF(ROW(B17)-ROW(B$1)+1>COUNT($C$1:$C$20),\"\",INDEX(B:B,SMALL(C$1:C$20,1+ROW(B17)-ROW(B$1))))","v":"Samaria"}]
[5,{"$f":"INDEX(VocabEnglish,A18,MATCH(List,VocabLists,0))","v":"he praised"},18,{"$f":"IF(ROW(B18)-ROW(B$1)+1>COUNT($C$1:$C$20),\"\",INDEX(B:B,SMALL(C$1:C$20,1+ROW(B18)-ROW(B$1))))","v":"he praised"}]
[15,{"$f":"INDEX(VocabEnglish,A19,MATCH(List,VocabLists,0))","v":"he burned incense"},19,{"$f":"IF(ROW(B19)-ROW(B$1)+1>COUNT($C$1:$C$20),\"\",INDEX(B:B,SMALL(C$1:C$20,1+ROW(B19)-ROW(B$1))))","v":"he burned incense"}]
[1,{"$f":"INDEX(VocabEnglish,A20,MATCH(List,VocabLists,0))","v":"Absolom"},20,{"$f":"IF(ROW(B20)-ROW(B$1)+1>COUNT($C$1:$C$20),\"\",INDEX(B:B,SMALL(C$1:C$20,1+ROW(B20)-ROW(B$1))))","v":"Absolom"}]